[Event "European School-ch 2019"]
[Site "Mamaia"]
[Date "2019.06.03"]
[Round "4.22"]
[White "Gusev, Mikhail"]
[Black "Sapocinic, Semion"]
[Result "0-1"]
[ECO "A46"]
[WhiteElo "1463"]
[BlackElo "1697"]
[Annotator "NA"]
[PlyCount "67"]
[EventDate "2019.05.31"]
[EventType "swiss"]
[EventCountry "ROU"]
[SourceTitle "playchess.com"]
[Source "ChessBase"]
[SourceQuality "1"]
[TimeControl "40/5400+30:1800+30"]

1. d4 {[%emt 0:00:00]} Nf6 {[%emt 0:00:00]} 2. Nf3 {[%emt 0:00:00]} e6 {[%emt 0:00:00]} 3. e3 {[%emt 0:00:00]} b6 {[%emt 0:00:09]} 4. Bd3 {[%emt 0:00:08]} Bb7 {[%emt 0:00:08]} 5. O-O {[%emt 0:00:07]} Be7 {[%emt 0:00:04]} 6. c4 {[%emt 0:00:05]} O-O {[%emt 0:00:16]} 7. Nc3 {[%emt 0:00:05]} d5 {[%emt 0:01:06]} 8. Ne5 {[%emt 0:00:57]} c5 {[%emt 0:01:58]} 9. cxd5 {[%emt 0:01:00]} cxd4 {[%emt 0:01:18]} 10. exd4 {[%emt 0:00:09]} Nxd5 {[%emt 0:00:30]} 11. Re1 {[%emt 0:03:14]} Nd7 {[%emt 0:02:11]} 12. Nxd5 {[%emt 0:04:43]} Bxd5 {[%emt 0:00:48]} 13. Re3 {[%emt 0:01:43]} Nxe5 {[%emt 0:00:45]} 14. dxe5 {[%emt 0:00:45]} g6 {[%emt 0:09:42]} 15. b3 {[%emt 0:03:38]} Bc5 {[%emt 0:01:34]} 16. Rh3 {[%emt 0:02:11]} Bd4 {[%emt 0:03:56]} 17. Bxg6 {[%emt 0:01:27]} Bxf2+ {[%emt 0:00:52]} 18. Kxf2 {[%emt 0:01:08]} fxg6+ {[%emt 0:00:09]} 19. Kg1 {[%emt 0:01:12]} Qc7 {[%emt 0:01:45]} 20. Ba3 {[%emt 0:01:24]} Rf5 {[%emt 0:01:44]} 21. Bd6 {[%emt 0:00:12]} Qb7 {[%emt 0:00:24]} 22. Qd2 {[%emt 0:01:23]} Rc8 {[%emt 0:00:39]} 23. Rg3 {[%emt 0:09:36]} Qc6 {[%emt 0:04:48]} 24. Be7 {[%emt 0:08:23]} Qc2 {[%emt 0:02:57]} 25. Qe1 {[%emt 0:10:23]} Qb2 {[%emt 0:02:21]} 26. Rb1 {[%emt 0:12:58]} Qd4+ {[%emt 0:00:49]} 27. Kh1 {[%emt 0:08:13]} Rc2 {[%emt 0:05:32]} 28. Rc1 {[%emt 0:04:34]} Qb2 {[%emt 0:05:44]} 29. Rxc2 {[%emt 0:01:49]} Qxc2 {[%emt 0:01:17]} 30. h3 {[%emt 0:00:17]} Rf2 {[%emt 0:13:44]} 31. Qg1 {[%emt 0:01:58]} Qe2 {[%emt 0:01:19]} 32. Kh2 {[%emt 0:00:42]} Rf1 {[%emt 0:01:38]} 33. Qd4 {[%emt 0:02:02]} Qe1 {[%emt 0:00:26]} 34. Qd1 0-1

[Event "European School-ch 2019"]
[Site "Mamaia"]
[Date "2019.06.03"]
[Round "4.23"]
[White "Magold, Filip"]
[Black "Butolo, Alexandru-Mircea"]
[Result "0-1"]
[ECO "B35"]
[WhiteElo "1906"]
[BlackElo "1553"]
[Annotator "NA"]
[PlyCount "48"]
[EventDate "2019.05.31"]
[EventType "swiss"]
[EventCountry "ROU"]
[SourceTitle "playchess.com"]
[Source "ChessBase"]
[SourceQuality "1"]
[TimeControl "40/5400+30:1800+30"]

1. e4 {[%emt 0:00:00]} c5 {[%emt 0:00:13]} 2. Nf3 {[%emt 0:00:02]} g6 {[%emt 0:00:21]} 3. d4 {[%emt 0:00:41]} cxd4 {[%emt 0:03:20]} 4. Nxd4 {[%emt 0:00:26]} Bg7 {[%emt 0:00:30]} 5. Nc3 {[%emt 0:00:06]} Nc6 {[%emt 0:00:30]} 6. Be3 {[%emt 0:00:16]} Nf6 {[%emt 0:00:09]} 7. Bc4 {[%emt 0:00:07]} O-O {[%emt 0:00:19]} 8. Bb3 {[%emt 0:00:06]} d5 9. exd5 {[%emt 0:00:11]} Na5 {[%emt 0:00:53]} 10. O-O {[%emt 0:00:19]} Nxb3 11. Nxb3 {[%emt 0:00:05]} b6 {[%emt 0:00:32]} 12. d6 {[%emt 0:00:08]} Bb7 {[%emt 0:00:50]} 13. dxe7 Qxe7 {[%emt 0:01:18]} 14. Bd4 {[%emt 0:04:44]} Rad8 {[%emt 0:03:21]} 15. Qe2 {[%emt 0:01:37]} Qc7 {[%emt 0:01:14]} 16. Rad1 {[%emt 0:08:09]} (16. Rfe1 $11) 16... Rfe8 $15 {[%emt 0:01:28]} 17. Qb5 {[%emt 0:14:34]} Ng4 {[%emt 0:05:43]} 18. g3 {[%emt 0:04:35]} Bxd4 {[%emt 0:02:17]} 19. Rxd4 {[%emt 0:00:19]} Ne5 {[%emt 0:02:55]} 20. Rxd8 {[%emt 0:26:51]} Nf3+ {[%emt 0:08:59]} 21. Kh1 {[%emt 0:05:40]} Rxd8 {[%emt 0:00:53]} 22. Qb4 {[%emt 0:01:57]} Nd2+ {[%emt 0:06:55]} 23. Kg1 {[%emt 0:00:14]} Qc6 {[%emt 0:01:10]} 24. f3 {[%emt 0:00:16]} Nxf1 {[%emt 0:00:57]} 0-1

[Event "European School-ch 2019"]
[Site "Mamaia"]
[Date "2019.06.03"]
[Round "4.24"]
[White "Conon, Catalin"]
[Black "Cnejev, Vladimir-Alexandru"]
[Result "0-1"]
[ECO "D35"]
[WhiteElo "1533"]
[BlackElo "1970"]
[Annotator "NA"]
[PlyCount "56"]
[EventDate "2019.05.31"]
[EventType "swiss"]
[EventCountry "ROU"]
[SourceTitle "playchess.com"]
[Source "ChessBase"]
[SourceQuality "1"]
[TimeControl "40/5400+30:1800+30"]

1. d4 {[%emt 0:00:00]} d5 {[%emt 0:00:00]} 2. c4 {[%emt 0:00:00]} e6 {[%emt 0:00:00]} 3. cxd5 {[%emt 0:00:00]} exd5 {[%emt 0:00:00]} 4. Nc3 {[%emt 0:00:16]} Nf6 {[%emt 0:00:00]} 5. Bg5 {[%emt 0:00:32]} c6 {[%emt 0:00:04]} 6. e3 {[%emt 0:00:27]} Bf5 {[%emt 0:00:06]} 7. Bd3 {[%emt 0:01:52]} Bxd3 {[%emt 0:00:08]} 8. Qxd3 {[%emt 0:00:07]} Nbd7 {[%emt 0:00:08]} 9. Nf3 {[%emt 0:01:22]} Be7 {[%emt 0:00:29]} 10. O-O {[%emt 0:01:58]} O-O {[%emt 0:00:05]} 11. Rab1 {[%emt 0:14:20]} Ne4 $11 {[%emt 0:00:37]} 12. Bxe7 {[%emt 0:04:59]} Qxe7 {[%emt 0:00:08]} 13. Nd2 {[%emt 0:06:56]} Rfe8 {[%emt 0:01:15]} 14. Ncxe4 {[%emt 0:07:53]} dxe4 {[%emt 0:00:08]} 15. Qe2 {[%emt 0:01:10]} Nf6 {[%emt 0:03:46]} 16. f3 {[%emt 0:09:18]} Rad8 {[%emt 0:12:36]} 17. f4 {[%emt 0:06:09]} Nd5 {[%emt 0:15:17]} 18. Nc4 {[%emt 0:08:42]} c5 {[%emt 0:03:56]} 19. Rbd1 {[%emt 0:02:55]} Kh8 {[%emt 0:15:45]} 20. Rfe1 {[%emt 0:06:19]} cxd4 {[%emt 0:05:09]} 21. exd4 {[%emt 0:09:18]} Nxf4 {[%emt 0:00:51]} 22. Qg4 {[%emt 0:01:09]} Nd5 {[%emt 0:03:54]} 23. Re2 {[%emt 0:03:53]} Nf6 {[%emt 0:00:20]} 24. Qg3 {[%emt 0:02:55]} Qe6 {[%emt 0:06:01]} 25. Qb3 {[%emt 0:02:03]} Kg8 {[%emt 0:04:12]} 26. h3 {[%emt 0:01:02]} Re7 {[%emt 0:03:12]} 27. Ne5 {[%emt 0:00:58]} Qxb3 {[%emt 0:00:13]} 28. axb3 {[%emt 0:00:08]} Rxe5 {[%emt 0:00:05]} 0-1

[Event "European School-ch 2019"]
[Site "Mamaia"]
[Date "2019.06.03"]
[Round "4.25"]
[White "Kotelnikov, Konstantin"]
[Black "Kolesov, Gordey"]
[Result "1/2-1/2"]
[ECO "C51"]
[WhiteElo "1546"]
[BlackElo "1745"]
[Annotator "NA"]
[PlyCount "75"]
[EventDate "2019.05.31"]
[EventType "swiss"]
[EventCountry "ROU"]
[SourceTitle "playchess.com"]
[Source "ChessBase"]
[SourceQuality "1"]
[TimeControl "40/5400+30:1800+30"]

1. e4 {[%emt 0:00:00]} e5 {[%emt 0:00:00]} 2. Nf3 {[%emt 0:00:00]} Nc6 {[%emt 0:00:00]} 3. Bc4 {[%emt 0:00:02]} Bc5 {[%emt 0:00:00]} 4. b4 {[%emt 0:00:27]} Bxb4 {[%emt 0:00:14]} 5. c3 {[%emt 0:00:16]} Be7 {[%emt 0:00:09]} 6. d4 {[%emt 0:00:25]} Na5 {[%emt 0:01:38]} 7. Nxe5 {[%emt 0:14:26]} Nxc4 {[%emt 0:00:43]} 8. Nxc4 {[%emt 0:00:16]} d5 {[%emt 0:00:12]} 9. exd5 {[%emt 0:04:39]} Qxd5 {[%emt 0:00:08]} 10. Ne3 {[%emt 0:00:32]} Qd8 {[%emt 0:01:10]} 11. O-O {[%emt 0:04:26]} Nf6 {[%emt 0:00:34]} 12. c4 {[%emt 0:16:49]} O-O {[%emt 0:04:50]} 13. Nc3 {[%emt 0:06:09]} c6 {[%emt 0:11:06]} 14. Bb2 {[%emt 0:04:54]} Re8 {[%emt 0:08:58]} 15. Qd3 {[%emt 0:07:09]} Qc7 {[%emt 0:09:04]} 16. Rad1 {[%emt 0:10:28]} Ng4 {[%emt 0:09:48]} 17. Nxg4 {[%emt 0:04:45]} Bxg4 {[%emt 0:01:38]} 18. f3 {[%emt 0:06:06]} Bh5 {[%emt 0:05:10]} 19. Ne4 {[%emt 0:03:44]} Bg6 {[%emt 0:02:43]} 20. Qc3 {[%emt 0:01:46]} Bf8 {[%emt 0:11:44]} 21. Rfe1 {[%emt 0:03:06]} Rad8 {[%emt 0:11:57]} 22. d5 {[%emt 0:03:10]} cxd5 {[%emt 0:05:36]} 23. cxd5 {[%emt 0:03:18]} Qxc3 {[%emt 0:00:13]} 24. Bxc3 {[%emt 0:00:11]} Bxe4 {[%emt 0:05:56]} 25. fxe4 {[%emt 0:00:43]} Rc8 {[%emt 0:00:14]} 26. Rd3 {[%emt 0:01:23]} Rxc3 {[%emt 0:02:39]} 27. Rxc3 {[%emt 0:00:05]} Bb4 {[%emt 0:00:06]} 28. Rce3 {[%emt 0:00:05]} Bxe1 {[%emt 0:00:16]} 29. Rxe1 {[%emt 0:00:05]} f6 {[%emt 0:00:34]} 30. Kf2 {[%emt 0:00:25]} Kf8 {[%emt 0:00:31]} 31. Kf3 {[%emt 0:00:31]} Rc8 {[%emt 0:02:26]} 32. Re2 {[%emt 0:01:16]} Ke7 {[%emt 0:00:53]} 33. Kf4 {[%emt 0:01:08]} Rc4 {[%emt 0:01:48]} 34. g4 {[%emt 0:01:05]} g6 {[%emt 0:01:57]} 35. h4 {[%emt 0:01:49]} Rc1 {[%emt 0:00:51]} 36. Rf2 {[%emt 0:00:40]} Rh1 {[%emt 0:00:47]} 37. Kg3 {[%emt 0:01:13]} Re1 {[%emt 0:00:15]} 38. Kf4 {[%emt 0:00:07]} 1/2-1/2

[Event "European School-ch 2019"]
[Site "Mamaia"]
[Date "2019.06.03"]
[Round "4.26"]
[White "Kotolashvili, Davit"]
[Black "Ciocani, Iosif"]
[Result "1/2-1/2"]
[ECO "B31"]
[WhiteElo "1374"]
[BlackElo "1740"]
[Annotator "NA RC"]
[PlyCount "105"]
[EventDate "2019.05.31"]
[EventType "swiss"]
[EventCountry "ROU"]
[SourceTitle "playchess.com"]
[Source "ChessBase"]
[SourceQuality "1"]
[TimeControl "40/5400+30:1800+30"]

1. e4 {[%emt 0:00:00]} c5 {[%emt 0:00:00]} 2. Nf3 {[%emt 0:00:00]} Nc6 {[%emt 0:00:00]} 3. Bb5 {[%emt 0:00:00]} g6 {[%emt 0:01:03]} 4. O-O {[%emt 0:00:00]} Bg7 {[%emt 0:00:16]} 5. c3 {[%emt 0:00:03]} Nf6 {[%emt 0:05:18]} 6. Re1 {[%emt 0:00:07]} O-O {[%emt 0:02:56]} 7. d4 {[%emt 0:01:08]} cxd4 8. cxd4 {[%emt 0:00:11]} a6 {[%emt 0:04:29]} 9. Bf1 {[%emt 0:01:35]} d5 {[%emt 0:00:45]} 10. e5 {[%emt 0:02:32]} Ne4 {[%emt 0:03:21]} 11. Nc3 {[%emt 0:01:06]} Nxc3 {[%emt 0:01:50]} 12. bxc3 {[%emt 0:00:09]} Na5 {[%emt 0:03:01]} 13. Nd2 {[%emt 0:13:41]} Qc7 {[%emt 0:04:31]} 14. Qf3 {[%emt 0:04:45]} Be6 {[%emt 0:07:18]} 15. Nb3 {[%emt 0:03:08]} Nxb3 {[%emt 0:12:14]} 16. axb3 {[%emt 0:00:08]} b5 {[%emt 0:03:34]} 17. Ba3 {[%emt 0:16:43]} Rfe8 {[%emt 0:05:44]} 18. Bc5 {[%emt 0:10:50]} Red8 {[%emt 0:03:07]} 19. Bd3 {[%emt 0:01:50]} Bc8 {[%emt 0:06:16]} 20. c4 {[%emt 0:07:12]} bxc4 {[%emt 0:02:22]} 21. bxc4 {[%emt 0:00:21]} Bb7 {[%emt 0:01:16]} 22. Rab1 {[%emt 0:09:30]} Qd7 {[%emt 0:05:46]} 23. Rb6 {[%emt 0:07:25]} Bc6 {[%emt 0:02:25]} 24. Bxe7 {[%emt 0:05:27]} Qxe7 25. Rxc6 {[%emt 0:00:44]} dxc4 {[%emt 0:05:39]} 26. Rxc4 {[%emt 0:00:18]} a5 {[%emt 0:00:24]} 27. Ra4 {[%emt 0:02:02]} Qc7 {[%emt 0:02:27]} 28. Rb1 {[%emt 0:01:21]} Rdb8 {[%emt 0:02:32]} 29. Rxb8+ {[%emt 0:00:10]} Rxb8 {[%emt 0:00:13]} 30. g3 {[%emt 0:02:47]} Bf8 {[%emt 0:01:42]} 31. Qe4 {[%emt 0:02:10]} Bb4 {[%emt 0:03:38]} 32. Ra2 {[%emt 0:01:10]} Re8 {[%emt 0:02:36]} 33. Bb5 {[%emt 0:01:12]} Rd8 {[%emt 0:01:50]} 34. d5 {[%emt 0:00:56]} Qc5 {[%emt 0:01:25]} 35. Bc6 {[%emt 0:00:30]} Bc3 {[%emt 0:01:23]} 36. Rc2 {[%emt 0:02:10]} Qb4 {[%emt 0:02:28]} 37. Qxb4 {[%emt 0:00:32]} axb4 {[%emt 0:00:26]} 38. f4 {[%emt 0:00:08]} Bd4+ {[%emt 0:01:26]} 39. Kf1 {[%emt 0:01:06]} b3 {[%emt 0:00:23]} 40. Rc1 {[%emt 0:00:00]} b2 {[%emt 0:00:00]} 41. Rb1 {[%emt 0:00:15]} f6 {[%emt 0:03:33]} 42. e6 {[%emt 0:00:43]} Kf8 {[%emt 0:01:01]} 43. Ke2 {[%emt 0:01:25]} f5 {[%emt 0:01:56]} 44. Kd3 {[%emt 0:01:11]} Bf6 {[%emt 0:02:21]} 45. Kc4 {[%emt 0:04:04]} Ke7 {[%emt 0:02:17]} 46. Kc5 {[%emt 0:00:53]} Rd6 {[%emt 0:07:53]} 47. Rd1 {[%emt 0:09:11]} h6 {[%emt 0:02:38]} 48. h4 {[%emt 0:02:13]} Bg7 {[%emt 0:00:47]} 49. Kb6 {[%emt 0:01:48]} Bd4+ {[%emt 0:04:21]} 50. Kb5 {[%emt 0:03:52]} Rd8 {[%emt 0:03:19]} 51. Kc4 {[%emt 0:00:17]} Rb8 {[%emt 0:00:23]} 52. Rb1 {[%emt 0:01:30]} Bg7 53. Kc5 {[%emt 0:08:49]} 1/2-1/2

[Event "European School-ch 2019"]
[Site "Mamaia"]
[Date "2019.06.03"]
[Round "4.27"]
[White "Zhelev, Nikolay"]
[Black "Monga, Kanav"]
[Result "1-0"]
[ECO "B23"]
[WhiteElo "1710"]
[BlackElo "1416"]
[Annotator "NA"]
[PlyCount "49"]
[EventDate "2019.05.31"]
[EventType "swiss"]
[EventCountry "ROU"]
[SourceTitle "playchess.com"]
[Source "ChessBase"]
[SourceQuality "1"]
[TimeControl "40/5400+30:1800+30"]

1. e4 {[%emt 0:00:00]} c5 {[%emt 0:00:00]} 2. Nc3 {[%emt 0:00:00]} e6 {[%emt 0:00:28]} 3. Nf3 {[%emt 0:00:56]} a6 {[%emt 0:00:22]} 4. g3 {[%emt 0:02:18]} Nc6 {[%emt 0:00:52]} 5. Bg2 {[%emt 0:02:33]} Qc7 {[%emt 0:00:33]} 6. O-O {[%emt 0:01:42]} Nf6 {[%emt 0:00:31]} 7. d3 {[%emt 0:02:01]} Be7 {[%emt 0:00:38]} 8. Ng5 {[%emt 0:07:05]} h6 {[%emt 0:03:26]} 9. Nh3 {[%emt 0:00:13]} O-O {[%emt 0:01:34]} 10. f4 {[%emt 0:02:41]} d6 {[%emt 0:00:43]} 11. Nf2 {[%emt 0:19:10]} e5 {[%emt 0:13:58]} 12. f5 {[%emt 0:03:28]} Rd8 {[%emt 0:04:50]} 13. Ng4 {[%emt 0:03:20]} Ne8 {[%emt 0:10:37]} 14. Nd5 {[%emt 0:02:03]} Qd7 {[%emt 0:05:08]} 15. Nb6 {[%emt 0:01:59]} Qc7 {[%emt 0:02:59]} 16. Nxa8 {[%emt 0:00:07]} Qd7 {[%emt 0:00:18]} 17. Nb6 {[%emt 0:00:10]} Qc7 {[%emt 0:00:04]} 18. Nd5 {[%emt 0:00:32]} Qd7 {[%emt 0:00:15]} 19. f6 {[%emt 0:11:55]} Bxf6 {[%emt 0:01:27]} 20. Ngxf6+ {[%emt 0:00:57]} Nxf6 {[%emt 0:00:30]} 21. Rxf6 {[%emt 0:01:51]} Ne7 {[%emt 0:01:38]} 22. Nxe7+ {[%emt 0:03:08]} Qxe7 {[%emt 0:00:11]} 23. Rf2 {[%emt 0:00:07]} b5 {[%emt 0:01:14]} 24. Qh5 {[%emt 0:01:54]} Rf8 {[%emt 0:01:35]} 25. Bh3 {[%emt 0:01:20]} 1-0

[Event "European School-ch 2019"]
[Site "Mamaia"]
[Date "2019.06.03"]
[Round "4.28"]
[White "Zheng, Harry Z"]
[Black "Tutunculer, Cagan"]
[Result "0-1"]
[ECO "B76"]
[WhiteElo "1653"]
[BlackElo "1193"]
[Annotator "NA"]
[PlyCount "106"]
[EventDate "2019.05.31"]
[EventType "swiss"]
[EventCountry "ROU"]
[SourceTitle "playchess.com"]
[Source "ChessBase"]
[SourceQuality "1"]
[TimeControl "40/5400+30:1800+30"]

1. e4 {[%emt 0:00:00]} c5 {[%emt 0:00:00]} 2. Nf3 {[%emt 0:00:05]} d6 {[%emt 0:00:15]} 3. d4 {[%emt 0:00:27]} cxd4 {[%emt 0:00:13]} 4. Nxd4 {[%emt 0:00:25]} Nf6 {[%emt 0:00:23]} 5. Nc3 {[%emt 0:00:27]} g6 {[%emt 0:00:19]} 6. Be3 {[%emt 0:00:17]} Bg7 {[%emt 0:00:18]} 7. f3 {[%emt 0:00:26]} O-O {[%emt 0:00:25]} 8. Qd2 {[%emt 0:00:30]} Nc6 {[%emt 0:00:36]} 9. O-O-O {[%emt 0:00:20]} d5 {[%emt 0:00:27]} 10. exd5 {[%emt 0:00:45]} Nxd5 {[%emt 0:00:22]} 11. Nxc6 {[%emt 0:01:05]} bxc6 {[%emt 0:00:34]} 12. Bd4 {[%emt 0:00:30]} Bxd4 {[%emt 0:00:30]} 13. Qxd4 {[%emt 0:00:30]} Qb6 {[%emt 0:00:30]} 14. Na4 {[%emt 0:00:30]} Qc7 {[%emt 0:00:30]} 15. Nc5 {[%emt 0:08:22]} Nf4 {[%emt 0:15:32]} 16. g3 {[%emt 0:09:40]} Ne6 {[%emt 0:00:54]} 17. Qc3 {[%emt 0:05:41]} Nxc5 {[%emt 0:04:41]} 18. Qxc5 {[%emt 0:00:17]} Be6 {[%emt 0:00:46]} 19. a3 {[%emt 0:05:03]} Rfd8 {[%emt 0:07:34]} 20. Bg2 {[%emt 0:08:34]} Rd6 {[%emt 0:10:53]} 21. f4 {[%emt 0:08:26]} Rc8 {[%emt 0:03:37]} 22. Rxd6 exd6 {[%emt 0:01:18]} 23. Qc3 {[%emt 0:15:36]} Qb6 {[%emt 0:01:14]} 24. Rf1 {[%emt 0:02:38]} d5 {[%emt 0:02:26]} 25. Qd2 {[%emt 0:02:04]} d4 {[%emt 0:03:45]} 26. Rd1 {[%emt 0:03:53]} c5 {[%emt 0:00:53]} 27. h3 {[%emt 0:02:17]} Rb8 {[%emt 0:04:09]} 28. c3 {[%emt 0:01:20]} Qb3 {[%emt 0:04:27]} 29. Qc2 {[%emt 0:06:53]} Qxc2+ {[%emt 0:00:14]} 30. Kxc2 {[%emt 0:00:13]} Bb3+ {[%emt 0:00:09]} 31. Kc1 {[%emt 0:00:48]} Bxd1 {[%emt 0:00:07]} 32. Kxd1 {[%emt 0:00:07]} Rxb2 {[%emt 0:00:08]} 33. Be4 {[%emt 0:00:10]} dxc3 {[%emt 0:00:15]} 34. Kc1 {[%emt 0:00:13]} Ra2 {[%emt 0:00:45]} 35. g4 {[%emt 0:00:14]} Rxa3 {[%emt 0:00:09]} 36. Kc2 {[%emt 0:00:04]} Ra4 {[%emt 0:00:57]} 37. Bd3 {[%emt 0:00:23]} Rxf4 {[%emt 0:00:16]} 38. Kxc3 {[%emt 0:00:12]} Kg7 {[%emt 0:00:25]} 39. Be2 {[%emt 0:00:44]} Kf6 {[%emt 0:00:22]} 40. Kd2 {[%emt 0:00:00]} Rf2 {[%emt 0:00:00]} 41. Ke3 {[%emt 0:00:35]} Rxe2+ 42. Kxe2 {[%emt 0:00:04]} Kg5 {[%emt 0:00:35]} 43. Kd3 {[%emt 0:00:09]} Kh4 {[%emt 0:00:10]} 44. Kc4 {[%emt 0:00:32]} Kxh3 {[%emt 0:00:07]} 45. g5 {[%emt 0:00:09]} Kg4 {[%emt 0:00:06]} 46. Kxc5 {[%emt 0:00:04]} Kxg5 {[%emt 0:00:09]} 47. Kd6 {[%emt 0:01:46]} h5 {[%emt 0:00:10]} 48. Ke7 {[%emt 0:00:16]} h4 {[%emt 0:00:08]} 49. Kf8 {[%emt 0:00:05]} h3 {[%emt 0:00:08]} 50. Kg8 {[%emt 0:00:30]} h2 {[%emt 0:00:09]} 51. Kg7 {[%emt 0:00:05]} h1=Q {[%emt 0:00:08]} 52. Kg8 {[%emt 0:00:05]} Kf6 {[%emt 0:00:08]} 53. Kf8 {[%emt 0:00:03]} Qh8# 0-1

[Event "European School-ch 2019"]
[Site "Mamaia"]
[Date "2019.06.03"]
[Round "4.29"]
[White "Karimli, Yusif"]
[Black "Utlu, Mustafa Ali"]
[Result "1-0"]
[ECO "A48"]
[WhiteElo "1470"]
[BlackElo "1148"]
[Annotator "NA"]
[PlyCount "93"]
[EventDate "2019.05.31"]
[EventType "swiss"]
[EventCountry "ROU"]
[SourceTitle "playchess.com"]
[Source "ChessBase"]
[SourceQuality "1"]
[TimeControl "40/5400+30:1800+30"]

1. d4 {[%emt 0:00:00]} Nf6 {[%emt 0:00:00]} 2. Nf3 {[%emt 0:00:00]} g6 {[%emt 0:00:00]} 3. e3 {[%emt 0:00:09]} Bg7 {[%emt 0:00:00]} 4. Be2 {[%emt 0:00:26]} O-O {[%emt 0:00:27]} 5. O-O {[%emt 0:00:37]} d5 {[%emt 0:00:51]} 6. b3 {[%emt 0:00:37]} c5 {[%emt 0:00:44]} 7. Bb2 {[%emt 0:02:29]} Nc6 {[%emt 0:01:07]} 8. Nbd2 {[%emt 0:01:06]} cxd4 {[%emt 0:01:54]} 9. exd4 {[%emt 0:01:27]} Nh5 {[%emt 0:00:29]} 10. Ne5 {[%emt 0:14:20]} Nf4 {[%emt 0:01:06]} 11. Bf3 {[%emt 0:03:03]} g5 {[%emt 0:04:00]} 12. Nxc6 {[%emt 0:09:14]} bxc6 {[%emt 0:00:35]} 13. g3 {[%emt 0:03:31]} Ng6 {[%emt 0:00:39]} 14. Re1 {[%emt 0:04:36]} f5 {[%emt 0:03:37]} 15. Bg2 {[%emt 0:17:17]} g4 {[%emt 0:01:45]} 16. f3 {[%emt 0:07:35]} f4 {[%emt 0:00:36]} 17. fxg4 {[%emt 0:00:44]} fxg3 {[%emt 0:00:16]} 18. hxg3 {[%emt 0:00:19]} Qd6 {[%emt 0:01:32]} 19. Nf1 {[%emt 0:06:01]} Ba6 {[%emt 0:01:04]} 20. Re3 {[%emt 0:00:40]} e5 {[%emt 0:01:21]} 21. c4 {[%emt 0:01:37]} e4 {[%emt 0:01:02]} 22. cxd5 {[%emt 0:00:39]} cxd5 {[%emt 0:00:14]} 23. g5 {[%emt 0:04:17]} h6 {[%emt 0:01:23]} 24. Qh5 {[%emt 0:00:24]} Ne7 {[%emt 0:02:30]} 25. gxh6 {[%emt 0:02:49]} Bxh6 {[%emt 0:01:24]} 26. Rc3 {[%emt 0:02:24]} Rf5 {[%emt 0:03:00]} 27. Qg4+ {[%emt 0:01:26]} Rg5 {[%emt 0:03:29]} 28. Qf4 {[%emt 0:04:13]} Qb6 {[%emt 0:02:12]} 29. Rc5 {[%emt 0:01:40]} Bxf1 {[%emt 0:03:14]} 30. Rxf1 {[%emt 0:02:09]} Rf8 {[%emt 0:00:28]} 31. Qc7 {[%emt 0:01:53]} Rxf1+ {[%emt 0:00:28]} 32. Bxf1 {[%emt 0:00:11]} Qxc7 {[%emt 0:00:37]} 33. Rxc7 {[%emt 0:00:10]} Rxg3+ {[%emt 0:00:15]} 34. Kf2 {[%emt 0:00:19]} Nf5 {[%emt 0:04:21]} 35. Rd7 {[%emt 0:01:11]} Rf3+ {[%emt 0:00:58]} 36. Ke1 {[%emt 0:00:39]} Ng3 {[%emt 0:00:58]} 37. Bb5 {[%emt 0:02:01]} e3 {[%emt 0:04:58]} 38. Rxd5 {[%emt 0:01:55]} Rf2 {[%emt 0:02:02]} 39. Rd8+ {[%emt 0:01:49]} Kg7 {[%emt 0:01:07]} 40. Rd7+ {[%emt 0:00:00]} Kf6 {[%emt 0:00:00]} 41. Rd6+ {[%emt 0:05:56]} Kg5 {[%emt 0:02:32]} 42. Bc1 {[%emt 0:01:46]} Rxa2 {[%emt 0:09:47]} 43. Bxe3+ {[%emt 0:00:12]} Kg4 {[%emt 0:01:16]} 44. Rxh6 {[%emt 0:03:23]} Kf3 {[%emt 0:01:22]} 45. Bc1 {[%emt 0:00:48]} Ne4 {[%emt 0:01:20]} 46. Rh3+ {[%emt 0:01:36]} Kg4 {[%emt 0:00:24]} 47. Re3 {[%emt 0:00:25]} 1-0

[Event "European School-ch 2019"]
[Site "Mamaia"]
[Date "2019.06.03"]
[Round "4.30"]
[White "Durucay, Uygar"]
[Black "Yasmo, Daniil"]
[Result "1-0"]
[ECO "D00"]
[WhiteElo "1575"]
[BlackElo "1424"]
[Annotator "NA"]
[PlyCount "64"]
[EventDate "2019.05.31"]
[EventType "swiss"]
[EventCountry "ROU"]
[SourceTitle "playchess.com"]
[Source "ChessBase"]
[SourceQuality "1"]
[TimeControl "40/5400+30:1800+30"]

1. d4 {[%emt 0:00:12]} d5 {[%emt 0:00:02]} 2. Bf4 {[%emt 0:00:19]} Nf6 {[%emt 0:00:36]} 3. e3 {[%emt 0:00:38]} e6 {[%emt 0:00:26]} 4. Nf3 {[%emt 0:01:02]} Bd6 {[%emt 0:01:03]} 5. Bg3 {[%emt 0:00:45]} O-O {[%emt 0:01:12]} 6. Bd3 {[%emt 0:00:54]} b6 {[%emt 0:01:36]} 7. O-O {[%emt 0:03:05]} Bb7 {[%emt 0:01:10]} 8. Nbd2 {[%emt 0:01:31]} c5 {[%emt 0:01:39]} 9. c3 {[%emt 0:03:27]} Nc6 {[%emt 0:01:23]} 10. Ne5 {[%emt 0:01:56]} Qc7 {[%emt 0:01:53]} 11. f4 {[%emt 0:04:44]} Ne7 {[%emt 0:02:32]} 12. Qb1 {[%emt 0:12:11]} Ng6 {[%emt 0:07:06]} 13. Rf3 {[%emt 0:07:49]} Qe7 {[%emt 0:27:49]} 14. Be1 {[%emt 0:09:45]} Rac8 {[%emt 0:05:57]} 15. Rh3 {[%emt 0:01:33]} Bxe5 {[%emt 0:14:40]} 16. fxe5 {[%emt 0:01:19]} Ne8 {[%emt 0:00:41]} 17. Qd1 {[%emt 0:04:43]} Qg5 {[%emt 0:04:52]} 18. Bxg6 {[%emt 0:02:06]} fxg6 {[%emt 0:00:51]} 19. Bh4 {[%emt 0:00:44]} Qf5 {[%emt 0:00:45]} 20. Qe2 {[%emt 0:01:38]} Nc7 {[%emt 0:03:59]} 21. Be7 {[%emt 0:02:54]} Rfe8 {[%emt 0:01:44]} 22. Rf1 {[%emt 0:04:51]} Qc2 {[%emt 0:07:15]} 23. Bd6 {[%emt 0:02:58]} Qa4 {[%emt 0:04:18]} 24. Qf2 {[%emt 0:00:45]} Qd7 {[%emt 0:00:29]} 25. Rf3 {[%emt 0:00:34]} h6 {[%emt 0:01:31]} 26. Rf7 {[%emt 0:01:12]} Qd8 {[%emt 0:01:01]} 27. Qg3 {[%emt 0:03:31]} Kh7 {[%emt 0:00:41]} 28. R1f6 {[%emt 0:02:32]} g5 {[%emt 0:00:55]} 29. Qh3 {[%emt 0:00:30]} Kg8 {[%emt 0:02:39]} 30. Rxg7+ {[%emt 0:00:12]} Kxg7 {[%emt 0:00:05]} 31. Qxh6+ {[%emt 0:00:06]} Kg8 {[%emt 0:01:50]} 32. Rg6+ {[%emt 0:00:10]} Kf7 {[%emt 0:00:07]} 1-0